bitfinex/quotes_BTCUSD_20240611
["timestamp","ask_amount","ask_price","bid_price","bid_amount"]
[1718134277097,0.54991411,67185.0,67184.0,0.000946]
[1718134278293,0.55077411,67185.0,67184.0,0.000946]
[1718134279280,0.50358608,67185.0,67184.0,0.000946]
[1718134279957,0.48358608,67185.0,67184.0,0.000946]
[1718134283239,0.50358608,67185.0,67184.0,0.000946]
[1718134283662,0.66840601,67185.0,67184.0,0.000946]
[1718134284815,0.64840601,67185.0,67184.0,0.000946]
[1718134285023,0.66240601,67185.0,67184.0,0.000946]
[1718134285234,0.78099481,67185.0,67184.0,0.000946]
[1718134289046,0.189351,67181.0,67178.0,0.000946]
[1718134289304,0.60163661,67181.0,67178.0,0.000946]
[1718134289519,1.54322461,67181.0,67178.0,0.000946]
[1718134289733,0.84595654,67181.0,67178.0,0.000946]
[1718134289960,0.97574261,67181.0,67178.0,0.000946]
[1718134290190,0.90344261,67181.0,67178.0,0.000946]
[1718134290424,0.97574261,67181.0,67178.0,0.000946]
[1718134290683,0.90344261,67181.0,67178.0,0.000946]
[1718134290907,0.97574261,67181.0,67178.0,0.000946]
[1718134291564,0.98974261,67181.0,67178.0,0.000946]
[1718134291774,0.82468261,67181.0,67178.0,0.000946]
[1718134291977,0.69513661,67181.0,67178.0,0.000946]
[1718134292410,1.00269161,67181.0,67178.0,0.000946]
[1718134293033,1.14701154,67181.0,67178.0,0.000946]
[1718134297839,0.91876761,67181.0,67178.0,0.000946]
[1718134298053,0.99106761,67181.0,67178.0,0.000946]
[1718134298696,1.28877061,67181.0,67178.0,0.000946]
[1718134299118,1.48878993,67181.0,67178.0,0.000946]
[1718134300185,1.28878993,67181.0,67178.0,0.000946]
[1718134300800,1.43310986,67181.0,67178.0,0.000946]
[1718134301857,1.28878993,67181.0,67178.0,0.000946]
[1718134302128,1.3156079,67181.0,67178.0,0.000946]
[1718134306779,1.2865979,67181.0,67178.0,0.000946]
[1718134310139,1.2142979,67181.0,67178.0,0.000946]
[1718134310344,1.2865979,67181.0,67178.0,0.000946]
[1718134310546,1.2865979,67181.0,67178.0,0.159246]
[1718134310547,1.2321676,67181.0,67178.0,0.159246]
[1718134310752,1.3044676,67181.0,67178.0,0.159246]
[1718134311494,1.43091783,67181.0,67178.0,0.159246]
[1718134311699,1.43091783,67181.0,67178.0,0.000946]
[1718134311907,1.49777536,67181.0,67178.0,0.000946]
[1718134312126,1.42547536,67181.0,67178.0,0.000946]
[1718134312326,1.65253862,67181.0,67178.0,0.000946]
[1718134312532,1.49779199,67181.0,67178.0,0.000946]
[1718134312744,1.30739879,67181.0,67178.0,0.000946]
[1718134312956,1.49780026,67181.0,67178.0,0.000946]
[1718134315091,1.49780029,67181.0,67178.0,0.000946]
[1718134317078,1.47551017,67181.0,67178.0,0.000946]
[1718134317283,1.43092605,67181.0,67178.0,0.000946]
[1718134317495,1.4755112,67181.0,67178.0,0.000946]
[1718134318496,1.47551371,67181.0,67178.0,0.000946]
[1718134319727,1.4309214,67181.0,67178.0,0.000946]
[1718134319940,1.4978076,67181.0,67178.0,0.000946]
[1718134320588,1.6978076,67181.0,67178.0,0.000946]
[1718134320791,1.99551701,67181.0,67178.0,0.000946]
[1718134321089,2.17073344,67181.0,67178.0,0.000946]
[1718134321293,2.20849801,67181.0,67178.0,0.000946]
[1718134321473,2.58034997,67181.0,67178.0,0.000946]
[1718134321690,2.46886229,67181.0,67178.0,0.000946]
[1718134321841,2.26886229,67181.0,67178.0,0.000946]
[1718134322416,2.58036697,67181.0,67178.0,0.000946]
[1718134322862,2.2835696,67181.0,67178.0,0.000946]
[1718134323067,2.46886229,67181.0,67178.0,0.000946]
[1718134323263,2.26886229,67181.0,67178.0,0.000946]
[1718134323479,2.58041,67181.0,67178.0,0.000946]
[1718134324517,2.39511205,67181.0,67178.0,0.000946]
[1718134324720,2.35434451,67181.0,67178.0,0.000946]
[1718134324919,2.39515028,67181.0,67178.0,0.000946]
[1718134325145,2.58044823,67181.0,67178.0,0.000946]
[1718134325302,2.39515028,67181.0,67178.0,0.000946]
[1718134325892,2.58044823,67181.0,67178.0,0.000946]
[1718134326094,2.46894355,67181.0,67178.0,0.000946]
[1718134326206,2.2836456,67181.0,67178.0,0.000946]
[1718134326616,2.46894355,67181.0,67178.0,0.000946]
[1718134326824,2.2836456,67181.0,67178.0,0.000946]
[1718134327290,2.46894355,67181.0,67178.0,0.000946]
[1718134327489,2.3951744,67181.0,67178.0,0.000946]
[1718134328105,2.58047235,67181.0,67178.0,0.000946]
[1718134328307,2.2836456,67181.0,67178.0,0.000946]
[1718134329969,1.9908456,67181.0,67178.0,0.000946]
[1718134330193,2.1908456,67181.0,67178.0,0.000946]
[1718134330385,2.0631456,67181.0,67178.0,0.000946]
[1718134330584,1.99104857,67181.0,67178.0,0.000946]
[1718134330997,2.06314509,67181.0,67178.0,0.000946]
[1718134331213,1.99104857,67181.0,67178.0,0.000946]
[1718134332067,2.24844313,67181.0,67178.0,0.000946]
[1718134332289,2.06314518,67181.0,67178.0,0.000946]
[1718134332492,2.24844313,67181.0,67178.0,0.000946]
[1718134332906,2.06314518,67181.0,67178.0,0.000946]
[1718134333115,1.99104857,67181.0,67178.0,0.000946]
[1718134335597,1.91874857,67181.0,67180.0,0.081746]
[1718134335802,1.99104857,67181.0,67180.0,0.081746]
[1718134336013,1.99207543,67181.0,67180.0,0.081746]
[1718134336222,1.8477555,67181.0,67180.0,0.081746]
[1718134337047,1.9593565,67181.0,67180.0,0.081746]
[1718134337252,1.6616535,67181.0,67180.0,0.081746]
[1718134337467,1.55007779,67181.0,67180.0,0.081746]
[1718134338941,1.51580936,67181.0,67180.0,0.081746]
[1718134339150,1.63933227,67181.0,67180.0,0.081746]
[1718134339592,0.60425341,67181.0,67180.0,0.228746]
[1718134339823,0.128,67181.0,67180.0,0.228746]
[1718134340047,0.15151878,67181.0,67180.0,0.23275792]
[1718134340263,0.25151878,67181.0,67180.0,0.23275792]
[1718134341111,0.23751878,67181.0,67180.0,0.23275792]
[1718134341585,0.23451878,67181.0,67180.0,0.23275792]
[1718134341790,0.24551878,67181.0,67180.0,0.23275792]
[1718134343789,0.30138089,67181.0,67180.0,0.23275792]
[1718134344007,0.44570082,67181.0,67180.0,0.23275792]
[1718134344239,0.45570082,67181.0,67180.0,0.23275792]
[1718134344453,0.44570082,67181.0,67180.0,0.23275792]
[1718134344676,0.38983871,67181.0,67180.0,0.23275792]
[1718134344888,0.53868971,67181.0,67180.0,0.23275792]
[1718134346597,0.24551878,67181.0,67180.0,0.23275792]
[1718134347005,0.122,67181.0,67180.0,0.23275792]
[1718134347211,0.022,67181.0,67180.0,0.23275792]
[1718134347412,0.1455056,67181.0,67180.0,0.23275792]
[1718134347611,0.2455056,67181.0,67180.0,0.23275792]
[1718134348508,0.122,67181.0,67180.0,0.23275792]
[1718134348719,0.022,67181.0,67180.0,0.23275792]
[1718134356634,0.022,67181.0,67180.0,0.25622181]
[1718134357877,0.011,67181.0,67180.0,0.23275792]
[1718134358089,0.012,67181.0,67180.0,0.23275792]
[1718134359020,0.001,67181.0,67180.0,0.23275792]
[1718134359235,0.0733,67181.0,67180.0,0.23275792]
[1718134359444,0.0723,67181.0,67180.0,0.23275792]
[1718134360679,0.0743,67181.0,67180.0,0.23275792]
[1718134361118,0.002,67181.0,67180.0,0.23275792]
[1718134361375,0.07316,67184.0,67181.0,0.082]
[1718134361885,0.07316,67184.0,67182.0,0.00390696]
[1718134362095,0.07316,67184.0,67183.0,0.082]
[1718134362563,0.07316,67184.0,67183.0,0.08590696]
[1718134362735,0.07916,67184.0,67183.0,0.08590696]
[1718134363177,0.07316,67184.0,67183.0,0.08590696]
[1718134363385,0.08316,67184.0,67183.0,0.08590696]
[1718134363599,0.09216,67184.0,67183.0,0.08590696]
[1718134365934,0.13536963,67184.0,67183.0,0.08590696]
[1718134368649,0.09216,67184.0,67183.0,0.08590696]
[1718134369289,0.01986,67184.0,67183.0,0.08590696]
[1718134372821,0.01986,67184.0,67183.0,0.23860696]
[1718134375271,0.01986,67184.0,67183.0,0.45975396]
[1718134375487,0.01986,67184.0,67183.0,0.47965396]
[1718134375711,0.01986,67184.0,67183.0,0.59600971]
[1718134375938,0.01986,67184.0,67183.0,0.45565511]
[1718134376151,0.00086,67184.0,67183.0,0.47555511]
[1718134376373,0.00086,67184.0,67183.0,0.40735396]
[1718134377243,0.00186,67184.0,67183.0,0.40735396]
[1718134378588,0.00186,67184.0,67183.0,0.38745396]
[1718134378805,0.00286,67184.0,67183.0,0.48065396]
[1718134380457,0.00286,67184.0,67183.0,0.46075396]
[1718134380665,0.00286,67184.0,67183.0,0.48065396]
[1718134380869,0.00286,67184.0,67183.0,0.476747]
[1718134381297,0.00186,67184.0,67183.0,0.475747]
[1718134381700,0.00286,67184.0,67183.0,0.475747]
[1718134382340,0.00186,67184.0,67183.0,0.475747]
[1718134382541,0.00286,67184.0,67183.0,0.475747]
[1718134383608,0.00286,67184.0,67183.0,0.383547]
[1718134383774,0.00286,67184.0,67183.0,0.2347]
[1718134384766,0.00186,67184.0,67183.0,0.2347]
[1718134385177,0.00086,67184.0,67183.0,0.2347]
[1718134385439,0.00186,67184.0,67183.0,0.2347]
[1718134385652,0.00286,67184.0,67183.0,0.2347]
[1718134385864,0.00086,67184.0,67183.0,0.2347]
[1718134386710,0.00086,67184.0,67183.0,0.2546]
[1718134387377,0.00086,67184.0,67183.0,0.4512117]
[1718134387595,0.00086,67185.0,67184.0,0.404184]
[1718134393378,0.00086,67185.0,67184.0,0.384284]
[1718134393586,0.00086,67185.0,67184.0,0.404184]
[1718134394416,0.00086,67185.0,67184.0,0.47008259]
[1718134396216,0.00086,67185.0,67184.0,0.404184]
[1718134396854,0.00086,67185.0,67184.0,0.384284]
[1718134402781,0.00086,67185.0,67184.0,0.404184]
[1718134402999,0.00086,67185.0,67184.0,0.384284]
[1718134403640,0.00086,67185.0,67184.0,0.456584]
[1718134405375,0.00086,67185.0,67184.0,0.476484]
[1718134406006,0.00086,67185.0,67184.0,0.47743]
[1718134406445,0.00086,67185.0,67184.0,0.5386527]
[1718134410246,0.00086,67185.0,67184.0,0.40513]
[1718134410472,0.00086,67185.0,67184.0,0.47743]
[1718134415947,0.00086,67185.0,67184.0,0.52201111]
[1718134417283,0.00086,67185.0,67184.0,0.47743]
[1718134417508,0.00086,67185.0,67184.0,0.7779416]
[1718134417708,0.00086,67185.0,67184.0,1.16053091]
[1718134418153,0.00086,67185.0,67184.0,1.26974928]
[1718134419012,0.00086,67185.0,67184.0,1.28154757]
[1718134420077,0.00086,67185.0,67184.0,1.28254757]
[1718134422103,0.00086,67185.0,67184.0,1.1710758]
[1718134422307,0.00086,67185.0,67184.0,1.28255326]
[1718134427688,0.00086,67185.0,67184.0,1.58024226]
[1718134427893,0.00086,67185.0,67184.0,1.4687648]
[1718134429004,0.00086,67185.0,67184.0,1.58024226]
[1718134429847,0.00086,67185.0,67184.0,1.60338433]
[1718134430263,0.00086,67185.0,67184.0,1.53108433]
[1718134430487,0.00086,67185.0,67184.0,1.4687648]
[1718134430693,0.00086,67185.0,67184.0,1.49190665]
[1718134431550,0.00086,67185.0,67184.0,1.4687648]
[1718134431750,0.00086,67185.0,67184.0,1.49190592]
[1718134432018,0.00086,67185.0,67184.0,1.60338338]
[1718134434199,0.00086,67185.0,67184.0,2.18959492]
[1718134434434,0.00086,67185.0,67184.0,2.38959492]
[1718134434672,0.00086,67185.0,67184.0,2.59299216]
[1718134435364,0.00086,67185.0,67184.0,2.61624612]
[1718134435590,0.00086,67185.0,67184.0,2.67696698]
[1718134435819,0.00086,67185.0,67184.0,2.60466698]
[1718134436050,0.00186,67185.0,67184.0,2.68196698]
[1718134436487,0.00086,67185.0,67184.0,2.71652769]
[1718134436713,0.00186,67185.0,67184.0,2.74466406]
[1718134436962,0.00286,67185.0,67184.0,2.7244101]
[1718134437421,0.00286,67185.0,67184.0,2.74825908]
[1718134437646,0.00286,67185.0,67184.0,2.72500551]
[1718134439662,0.00286,67185.0,67184.0,2.70186914]
[1718134439891,0.00286,67185.0,67184.0,2.58939357]
[1718134440357,0.00286,67185.0,67184.0,2.85074215]
[1718134440822,0.00286,67185.0,67184.0,2.71721528]
[1718134441245,0.00286,67185.0,67184.0,2.60793834]
[1718134441478,0.00286,67185.0,67184.0,2.85209534]
[1718134442105,0.00286,67185.0,67184.0,2.59057476]
[1718134442537,0.00286,67185.0,67184.0,2.85148205]
[1718134442753,0.00286,67185.0,67184.0,3.06630925]
[1718134442970,0.00286,67185.0,67184.0,2.99400925]
[1718134443196,0.00286,67185.0,67184.0,2.85148205]
[1718134443429,0.00286,67185.0,67184.0,2.84032631]
[1718134443878,0.00286,67185.0,67184.0,2.7068344]
[1718134444015,0.00286,67185.0,67184.0,2.84032631]
[1718134444441,0.00286,67185.0,67184.0,2.57932664]
[1718134444853,0.00286,67185.0,67184.0,2.58527964]
[1718134445047,0.00286,67185.0,67184.0,2.71665952]
[1718134445247,0.00286,67185.0,67184.0,2.81114299]
[1718134445521,0.00286,67185.0,67184.0,3.07229323]
[1718134445731,0.00286,67185.0,67184.0,3.09554616]
[1718134445931,0.00286,67185.0,67184.0,3.07229323]
[1718134446504,0.00286,67185.0,67184.0,2.81114299]
[1718134446679,0.00286,67185.0,67184.0,2.5887655]
[1718134447065,0.00286,67185.0,67184.0,2.71631643]
[1718134447270,0.00286,67185.0,67184.0,2.5887655]
[1718134447479,0.00286,67185.0,67184.0,2.84944053]
[1718134447718,0.00286,67185.0,67184.0,3.07279525]
[1718134447929,0.00286,67185.0,67184.0,2.82630485]
[1718134448152,0.00086,67194.0,67193.0,2.343345]
[1718134448395,0.00086,67199.0,67198.0,1.34566]
[1718134448597,0.00086,67199.0,67198.0,1.66777965]
[1718134448827,0.00086,67199.0,67198.0,1.83324763]
[1718134449277,0.00086,67199.0,67198.0,2.13087463]
[1718134449488,0.00086,67199.0,67198.0,2.27519456]
[1718134449695,0.00186,67199.0,67198.0,2.28919456]
[1718134449910,0.00186,67199.0,67198.0,2.28918334]
[1718134450141,0.00186,67199.0,67198.0,2.41563808]
[1718134450371,0.00186,67199.0,67198.0,2.30836839]
[1718134450372,0.00286,67199.0,67198.0,2.30836839]
[1718134451632,0.00286,67199.0,67198.0,2.4194061]
[1718134451856,0.00286,67199.0,67198.0,2.1471061]
[1718134452065,0.00286,67199.0,67198.0,2.2194061]
[1718134452508,0.00286,67199.0,67198.0,2.19719268]
[1718134453112,0.00286,67199.0,67198.0,2.39719268]
[1718134453334,0.00286,67199.0,67198.0,2.19719268]
[1718134453788,0.00286,67199.0,67198.0,2.39719268]
[1718134454031,0.00286,67199.0,67198.0,2.19719268]
[1718134454228,0.00286,67199.0,67198.0,2.10836839]
[1718134454448,0.00286,67199.0,67198.0,2.19719268]
[1718134454650,0.00286,67199.0,67198.0,2.39719268]
[1718134454891,0.00286,67199.0,67198.0,2.30837091]
[1718134455102,0.00286,67199.0,67198.0,2.3971952]
[1718134456890,0.00286,67199.0,67198.0,2.38948051]
[1718134457347,0.00286,67199.0,67198.0,1.39102938]
[1718134457570,0.00286,67199.0,67198.0,1.26543138]
[1718134459168,0.02336,67199.0,67198.0,0.31027228]
[1718134459390,0.02336,67199.0,67198.0,0.08071038]
[1718134459596,0.02336,67199.0,67198.0,0.019]
[1718134459597,0.09566,67199.0,67198.0,0.019]
[1718134459826,0.02336,67199.0,67198.0,0.019]
[1718134460268,0.02236,67199.0,67198.0,0.014]
[1718134460475,0.02236,67199.0,67194.0,0.148822]
[1718134460476,0.0205,67198.0,67190.0,0.148831]
[1718134460682,0.0723,67195.0,67190.0,0.148831]
[1718134460894,0.0205,67194.0,67190.0,0.148831]
[1718134461113,0.0205,67194.0,67191.0,0.148828]
[1718134463234,0.0205,67194.0,67191.0,0.154828]
[1718134464588,0.0205,67194.0,67193.0,0.0199]
[1718134464802,0.0205,67194.0,67192.0,0.148825]
[1718134465501,0.0205,67194.0,67193.0,0.148825]
[1718134466482,0.0205,67194.0,67193.0,0.168725]
[1718134466711,0.00086,67199.0,67195.0,0.0199]
[1718134466918,0.00086,67199.0,67198.0,0.221113]
[1718134467144,0.00086,67199.0,67198.0,0.241013]
[1718134467788,0.00086,67199.0,67198.0,0.221113]
[1718134467924,0.00086,67199.0,67198.0,0.148813]
[1718134468318,0.00086,67199.0,67198.0,0.221113]
[1718134469416,0.00086,67199.0,67198.0,0.229113]
[1718134469800,0.00086,67199.0,67198.0,0.221113]
[1718134470020,0.00086,67199.0,67198.0,0.227113]
[1718134471651,0.00086,67199.0,67198.0,0.154813]
[1718134473545,0.00086,67199.0,67198.0,0.227113]
[1718134476741,0.00086,67199.0,67198.0,0.27517829]
[1718134476970,0.00086,67199.0,67198.0,0.29507829]
[1718134477612,0.00086,67199.0,67198.0,0.52871822]
[1718134477841,0.00086,67199.0,67198.0,0.70831822]
[1718134478280,0.00086,67199.0,67198.0,0.94411822]
[1718134478508,0.00086,67199.0,67198.0,1.48622119]
[1718134478725,0.00086,67199.0,67198.0,1.66320257]
[1718134478977,0.00086,67199.0,67198.0,1.82279415]
[1718134479205,0.00086,67199.0,67198.0,2.14265914]
[1718134479477,0.00086,67199.0,67198.0,2.05470719]
[1718134479698,0.00086,67199.0,67198.0,2.05870719]
[1718134480133,0.00086,67199.0,67198.0,2.05470719]
[1718134480586,0.00186,67199.0,67198.0,2.06170719]
[1718134480830,0.00286,67199.0,67198.0,2.07470719]
[1718134481040,0.00186,67199.0,67198.0,2.17200719]
[1718134481257,0.00086,67199.0,67198.0,2.15900719]
[1718134482358,0.00286,67199.0,67198.0,2.17000719]
[1718134482577,0.00286,67199.0,67198.0,2.10823657]
[1718134482804,0.00186,67199.0,67198.0,2.16303862]
[1718134483242,0.00386,67199.0,67198.0,2.18703862]
[1718134483896,0.00286,67199.0,67198.0,2.17603862]
[1718134484123,0.00286,67199.0,67198.0,2.17403862]
[1718134484337,0.00386,67199.0,67198.0,2.18703862]
[1718134484792,0.00386,67199.0,67198.0,2.17403862]
[1718134485021,0.00386,67199.0,67198.0,2.18711857]
[1718134485022,0.00486,67199.0,67198.0,2.18711857]
[1718134485465,0.00486,67199.0,67198.0,2.00651857]
[1718134485695,0.00486,67199.0,67198.0,2.18711857]
[1718134485922,0.00386,67199.0,67198.0,2.17611857]
[1718134486370,0.00286,67199.0,67198.0,2.17411857]
[1718134486593,0.00286,67199.0,67198.0,2.18711857]
[1718134486820,0.00386,67199.0,67198.0,2.18711857]
[1718134487050,0.00386,67199.0,67198.0,2.17411857]
[1718134487311,0.00486,67199.0,67198.0,2.18711857]
[1718134493947,0.00486,67199.0,67198.0,2.18570285]
[1718134494617,0.00486,67199.0,67198.0,2.14743244]
[1718134494887,0.00486,67199.0,67198.0,2.18602896]
[1718134495099,0.00486,67199.0,67198.0,2.26778918]
[1718134495508,0.00486,67199.0,67198.0,2.37860824]
[1718134498023,0.00486,67199.0,67198.0,2.26778918]
[1718134500943,0.00486,67199.0,67198.0,2.15938918]
[1718134501158,0.00486,67199.0,67198.0,2.00542896]
[1718134501378,0.00486,67199.0,67198.0,2.07762896]
[1718134503444,0.00486,67199.0,67198.0,2.00542896]
[1718134503642,0.00486,67199.0,67198.0,2.07762896]
[1718134504717,0.00486,67199.0,67198.0,2.15938918]
[1718134504935,0.00486,67199.0,67198.0,2.36907777]
[1718134506666,0.00486,67199.0,67198.0,2.29687777]
[1718134506915,0.00486,67199.0,67198.0,2.27021766]
[1718134507162,0.00486,67199.0,67198.0,2.25824929]
[1718134507599,0.00486,67199.0,67198.0,2.15951548]
[1718134507783,0.00486,67199.0,67198.0,2.07762896]
[1718134508064,0.00386,67199.0,67198.0,2.07762896]
[1718134508279,0.00386,67199.0,67198.0,0.98103667]
[1718134508498,0.00386,67199.0,67198.0,0.63525293]
[1718134508727,0.00386,67199.0,67198.0,0.70251224]
[1718134509393,0.00286,67199.0,67198.0,0.69151224]
[1718134509612,0.00386,67199.0,67198.0,0.72551224]
[1718134509845,0.00386,67199.0,67198.0,0.96983217]
[1718134510340,0.00386,67199.0,67198.0,0.86983217]
[1718134510559,0.00186,67199.0,67198.0,0.87673217]
[1718134510763,0.00186,67199.0,67198.0,0.97673217]
[1718134510981,0.00186,67199.0,67198.0,0.97973217]
[1718134511203,0.00286,67199.0,67198.0,0.83241224]
[1718134511435,0.00286,67199.0,67198.0,0.87678931]
[1718134511647,0.00386,67199.0,67198.0,0.89078931]
[1718134511869,0.00386,67199.0,67198.0,0.84641224]
[1718134512074,0.00386,67199.0,67198.0,0.91853217]
[1718134512290,0.00386,67199.0,67198.0,1.05729777]
[1718134512731,0.00386,67199.0,67198.0,0.98509777]
[1718134512957,0.00386,67199.0,67198.0,0.99073217]
[1718134513414,0.00386,67199.0,67198.0,1.05729777]
[1718134513634,0.00386,67199.0,67198.0,0.99009079]
[1718134513869,0.00386,67199.0,67198.0,1.03526652]
[1718134514299,0.00386,67199.0,67198.0,1.09849313]
[1718134514516,0.00386,67199.0,67198.0,1.47612013]
[1718134514761,0.00386,67199.0,67198.0,1.4095022]
[1718134515685,0.02436,67199.0,67198.0,1.10042223]
[1718134515912,0.02436,67199.0,67198.0,1.17262223]
[1718134516133,0.02436,67199.0,67198.0,1.02273221]
[1718134516557,0.00386,67199.0,67198.0,1.15395199]
[1718134516771,0.00386,67199.0,67198.0,1.09622226]
[1718134517011,0.00386,67199.0,67198.0,1.1628835]
[1718134517221,0.00386,67199.0,67198.0,1.30720343]
[1718134517435,0.00386,67199.0,67198.0,1.29830071]
[1718134518085,0.00386,67199.0,67198.0,1.22610071]
[1718134518307,0.00386,67199.0,67198.0,1.06740582]
[1718134518525,0.00386,67199.0,67198.0,1.13409236]
[1718134519408,0.00386,67199.0,67198.0,0.63300521]
[1718134519613,0.00386,67199.0,67198.0,0.70520521]
[1718134519839,0.00386,67199.0,67198.0,0.65925293]
[1718134520048,0.00386,67199.0,67198.0,0.70372684]
[1718134520277,0.00386,67199.0,67198.0,0.65925293]
[1718134520528,0.02436,67199.0,67198.0,0.40745293]
[1718134520739,0.02436,67199.0,67198.0,0.263133]
[1718134523173,0.02436,67199.0,67198.0,0.335333]
[1718134526270,0.02436,67199.0,67198.0,0.3846209]
[1718134526720,0.00386,67199.0,67198.0,0.3846209]
[1718134526938,0.00386,67199.0,67198.0,0.3124209]
[1718134527152,0.00386,67199.0,67198.0,0.4045209]
[1718134528257,0.00386,67199.0,67198.0,0.3846209]
[1718134528913,0.00386,67199.0,67198.0,0.3124209]
[1718134529139,0.00386,67199.0,67198.0,0.3846209]
[1718134529778,0.00386,67199.0,67198.0,0.3124209]
[1718134529987,0.00386,67199.0,67198.0,0.3846209]
[1718134530203,0.00386,67199.0,67198.0,0.335333]
[1718134530691,0.00386,67199.0,67198.0,0.263133]
[1718134530898,0.00386,67199.0,67198.0,0.335333]
[1718134531993,0.11656,67199.0,67198.0,0.03093448]
[1718134532211,0.05128402,67199.0,67198.0,0.03093448]
[1718134532434,0.24694051,67199.0,67198.0,0.025]
[1718134532667,0.12348402,67199.0,67198.0,0.025946]
[1718134532894,0.24694973,67199.0,67198.0,0.025946]
[1718134533134,0.24780973,67199.0,67198.0,0.025946]
[1718134533347,0.22088571,67199.0,67198.0,0.025946]
[1718134533759,0.21988571,67199.0,67198.0,0.014946]
[1718134533973,0.09442,67199.0,67198.0,0.000946]
[1718134534182,0.21888306,67199.0,67198.0,0.011946]
[1718134534388,0.14668306,67199.0,67198.0,0.015946]
[1718134534597,0.14568306,67199.0,67198.0,0.004946]
[1718134535005,0.14568306,67199.0,67198.0,0.008946]
[1718134535217,0.02222,67199.0,67198.0,0.008946]
[1718134537782,0.04222,67199.0,67198.0,0.008946]
[1718134538026,0.23788121,67199.0,67198.0,0.008946]
[1718134539380,0.48669221,67199.0,67198.0,0.008946]
[1718134540260,0.48669221,67199.0,67198.0,0.004946]
[1718134540471,0.48669221,67199.0,67198.0,0.000946]
[1718134540720,0.48669221,67199.0,67198.0,0.001946]
[1718134541168,0.41849221,67199.0,67198.0,0.001946]
[1718134541380,0.41849221,67199.0,67198.0,0.000946]
[1718134541600,0.42149221,67199.0,67198.0,0.000946]
[1718134542235,0.4839237,67199.0,67198.0,0.000946]
[1718134544320,0.40149221,67199.0,67198.0,0.000946]
[1718134545056,0.42149221,67199.0,67198.0,0.000946]
[1718134557600,0.4215051,67199.0,67198.0,0.000946]
[1718134563120,0.4938051,67199.0,67198.0,0.000946]
[1718134563326,0.4215051,67199.0,67198.0,0.000946]
[1718134563547,0.53994394,67199.0,67198.0,0.000946]
[1718134567709,0.47244004,67199.0,67198.0,0.000946]
[1718134567919,0.38014573,67199.0,67198.0,0.000946]
[1718134568519,0.45244573,67199.0,67198.0,0.00692036]
[1718134568726,0.23133473,67199.0,67198.0,0.000946]
[1718134569604,0.23133473,67199.0,67198.0,0.00688564]
[1718134569851,0.23133473,67199.0,67198.0,0.000946]
[1718134570006,0.23133473,67199.0,67198.0,0.00688564]
[1718134570254,0.23133473,67199.0,67198.0,0.000946]
[1718134570481,0.23133473,67199.0,67198.0,0.00688564]
[1718134570688,0.23133473,67199.0,67198.0,0.000946]
[1718134570902,0.23133473,67199.0,67198.0,0.00688564]
[1718134571120,0.23133473,67199.0,67198.0,0.000946]
[1718134571333,0.23133473,67199.0,67198.0,0.00688564]
[1718134571545,0.23133473,67199.0,67198.0,0.076846]
[1718134574365,0.23133473,67199.0,67198.0,0.08278564]
[1718134574581,0.23133473,67199.0,67198.0,0.076846]
[1718134574823,0.23133473,67199.0,67198.0,0.08278564]
[1718134575063,0.23133473,67199.0,67198.0,0.076846]
[1718134575286,0.23133473,67199.0,67198.0,0.08278564]
[1718134575506,0.23133473,67199.0,67198.0,0.076846]
[1718134575775,0.23133473,67199.0,67198.0,0.08278564]
[1718134576033,0.23133473,67199.0,67198.0,0.076846]
[1718134576276,0.23133473,67199.0,67198.0,0.08278564]
[1718134579663,0.23133473,67199.0,67198.0,0.076846]
[1718134582286,0.13133473,67199.0,67198.0,0.3246252]
[1718134582494,0.00786,67199.0,67198.0,0.33056484]
[1718134582710,0.00786,67199.0,67198.0,0.37513162]
[1718134582919,0.00786,67199.0,67198.0,0.33056484]
[1718134584292,0.00486,67199.0,67198.0,0.39228771]
[1718134584542,0.00086,67199.0,67198.0,0.23478564]
[1718134584992,0.00086,67199.0,67198.0,0.24078564]
[1718134584993,0.00186,67199.0,67198.0,0.24078564]
[1718134585212,0.00186,67199.0,67198.0,0.23478564]
[1718134585679,0.00286,67199.0,67198.0,0.24078564]
[1718134586136,0.00286,67199.0,67198.0,0.24878564]
[1718134586608,0.00086,67199.0,67198.0,0.24778564]
[1718134587043,0.00086,67199.0,67198.0,0.24278564]
[1718134587289,0.00086,67199.0,67198.0,0.24678564]
[1718134587928,0.00086,67199.0,67198.0,0.25178564]
[1718134588136,0.00086,67199.0,67198.0,0.24678564]
[1718134588603,0.00386,67199.0,67198.0,0.24278564]
[1718134589071,0.00586,67199.0,67198.0,0.24278564]
[1718134595013,0.00586,67199.0,67198.0,0.30451262]
[1718134595436,0.00586,67199.0,67198.0,0.24278564]
[1718134596035,0.00586,67199.0,67198.0,0.30451336]
[1718134597431,0.00586,67199.0,67198.0,0.45332636]
[1718134597654,0.00586,67199.0,67198.0,0.60784796]
[1718134597870,0.00586,67199.0,67198.0,0.70644682]
[1718134598122,0.00586,67199.0,67198.0,0.60784796]
[1718134598336,0.00545723,67199.0,67198.0,0.60784796]
[1718134599017,0.00045723,67199.0,67198.0,0.60784796]
[1718134599251,0.00245723,67199.0,67198.0,0.55354796]
[1718134599463,0.00245723,67199.0,67198.0,0.62584796]
[1718134599667,0.00045723,67199.0,67198.0,0.60784796]
[1718134600059,0.00145723,67199.0,67198.0,0.61584796]
[1718134600729,0.00145723,67199.0,67198.0,0.71523743]
[1718134601413,0.00145723,67199.0,67198.0,0.61584796]
[1718134601647,0.00245723,67199.0,67198.0,0.54162636]
[1718134603123,0.00245723,67199.0,67198.0,0.62429237]
[1718134603468,0.00245723,67199.0,67198.0,0.6243315]
[1718134604511,0.00245723,67199.0,67198.0,0.62432676]
[1718134604922,0.00245723,67199.0,67198.0,0.62429456]
[1718134607145,0.00245723,67199.0,67198.0,0.55199456]
[1718134607345,0.00245723,67199.0,67198.0,0.62429456]
[1718134610403,0.00245723,67199.0,67198.0,0.55199456]
[1718134611044,0.00245723,67199.0,67198.0,0.16728156]
[1718134611268,0.00245723,67199.0,67198.0,0.08460862]
[1718134611904,0.00245723,67199.0,67198.0,0.02288564]
[1718134620922,0.05787097,67199.0,67198.0,0.02288564]
[1718134621167,0.25349838,67199.0,67198.0,0.02288564]
[1718134621404,0.25349838,67199.0,67198.0,0.016946]
[1718134622199,0.25349838,67199.0,67198.0,0.000946]